Cogmind - Beta 16 @@@ ROGUE MODE // 2026.01.05 @ 10:24:59 // Winter2019/RPGLIKE Player: Gallgagger Result: Destroyed by as-48718 with Assembled Heavy Rifle Performance ------------- Evolutions (0) 0 Regions Visited (2) 400 Robots Destroyed (42) 210 Value Destroyed (1258) 1258 Prototype IDs (0) 0 Alien Tech Used (0) 0 Bonus (61) 61 TOTAL SCORE: 1929 Bonus ------- High Alert Combat Kills 72 Friendly Fire -11 Cogmind --------- Core Integrity 0/600 Matter 156/300 Energy 250/250 System Corruption 2% Temperature Cool (0) Movement Hovering (56) Location -10/Mines Parts ------- > --- POWER (1) -------- Ion Engine > --- PROPULSION (3) --- Hover Unit Hover Unit > --- UTILITY (3) ------ Structural Scanner Improved Terrain Scanner Seismic Detector > --- WEAPON (3) ------- Assault Rifle Assault Rifle Light Assault Rifle > --- INVENTORY (1) ---- Heat Sink Peak State ------------ > --- POWER ------------ Ion Engine > --- PROPULSION ------- Hover Unit Hover Unit Hover Unit > --- UTILITY ---------- Structural Scanner Improved Terrain Scanner Seismic Detector > --- WEAPON ----------- Assault Rifle Assault Rifle Light Assault Rifle > --- INVENTORY -------- Heat Sink [Rating: 12] Favorites ----------- Power Ion Engine Engine Ion Engine Propulsion Hover Unit Wheel Wheel Hover Unit Hover Unit Utility Improved Terrain Scanner Device Improved Terrain Scanner Weapon Assault Rifle Ballistic Gun Assault Rifle Build | -11 -10 -10 ------- Run | Yrd Mat Min Slots Evolved 6 | 3 3 . Power . | . . . Propulsion 2 | 1 1 . Utility 2 | 1 1 . Weapon 2 | 1 1 . Parts Attached 13 | 7 6 . Power 1 | 1 . . Engine 1 | 1 . . Core . | . . . Reactor . | . . . Propulsion 5 | 2 3 . Treads . | . . . Leg . | . . . Wheel 2 | 2 . . Hover 3 | . 3 . Flight . | . . . Utility 4 | 2 2 . Device 4 | 2 2 . Storage . | . . . Processor . | . . . Hackware . | . . . Protection . | . . . Artifact . | . . . Weapon 3 | 2 1 . Energy Gun . | . . . Energy Cannon . | . . . Ballistic Gun 3 | 2 1 . Ballistic Cannon . | . . . Launcher . | . . . Special Weapon . | . . . Impact Weapon . | . . . Slashing Weapon . | . . . Piercing Weapon . | . . . Special Melee Weapon . | . . . Unidentified Prototypes . | . . . Parts Lost 1 | . . 1 Power . | . . . Propulsion 1 | . . 1 Utility . | . . . Weapon . | . . . Highest Loss Streak 1 | . . 1 To Critical Strikes . | . . . Average Backups . | . . 1 Power . | . . . Propulsion . | . . . Utility . | . . 1 Weapon . | . . . Tool/Special . | . . . Unused Backups . | . . . Power . | . . . Propulsion . | . . . Utility . | . . . Weapon . | . . . Tool/Special . | . . . Average Slot Usage (%) 90 | . 90 95 Engine 11 | . 12 10 Wheel 13 | . 14 . Hover 13 | . 12 25 Device 25 | . 25 30 Ballistic Gun 25 | . 24 30 Peak Build Rating 12 | 9 12 12 Average Rating 9 | 5 9 11 On Entrance 7 | . 9 12 Avg Prop Armor Cover (%) 5 | . 5 . Naked Turns . | . . . Heaviest Build 13 | 11 13 13 Greatest Support 36 | 31 36 28 Greatest Overweight (x) . | . . . Average Overweight (x) . | . . . Largest Inventory Capacity 1 | 1 1 1 Average Capacity 1 | 1 1 1 Most Carried 1 | . 1 1 Average Carried . | . . 1 Final Capacity 1 | 1 1 1 Final Carried 1 | . 1 1 Class Distribution -------------------- 51% | Mutant 39% | Scavenger-Mutant 4% | Skirmisher 4% | Scavenger-Skirmisher Dominant Class ---------------- Mutant | -10/Materials Skirmisher | -10/Mines Resources | -11 -10 -10 ----------- Run | Yrd Mat Min Matter Collected 839 | 330 508 1 Remotely . | . . . Salvage Created 1334 | 150 1118 66 Parts 86 | 11 63 12 Haulers Intercepted 1 | . 1 . Recyclers Shooed . | . . . Parts Field Recycled . | . . . Retrieved Matter . | . . . Parts Self-Destructed . | . . . Prevented . | . . . Parts Restored . | . . . Kills | -11 -10 -10 ------- Run | Yrd Mat Min Combat Hostiles Destroyed 32 | . 26 6 Guns 32 | . 26 6 Classes Destroyed 9 | 2 5 2 Worker 2 | . 2 . Tunneler 4 | 3 . 1 Hauler 1 | . 1 . Recycler 1 | 1 . . Watcher 3 | . 3 . Swarmer 5 | . 3 2 Grunt 25 | . 23 2 Demolisher 1 | . . 1 Assembled 1 | . . 1 Best Kill Streak 6 | 2 6 5 Combat Bots Only 5 | . 5 4 Max Kills in Single Turn 2 | 1 2 1 Gunslinging 1 | . 1 . Exploded . | . . . Melee . | . . . Uniques/NPCs Destroyed . | . . . Combat | -11 -10 -10 -------- Run | Yrd Mat Min Hostile Shots Fired 126 | . 86 40 Missed 31 | . 22 9 Hits 95 | . 64 31 Melee 2 | . . 2 Projectile 93 | . 64 29 AOE 11 | . . 11 Damage Taken 1416 | . 755 661 Core 1144 | . 614 530 Absorbed by Shields . | . . . Redirected to Core 887 | . 445 442 Core Remaining (%) 100 | 100 . . Volleys Fired 105 | 10 74 21 Largest 3 | 2 2 3 Hottest 60 | 40 40 60 Shots Fired 217 | 20 148 49 Gun 217 | 20 148 49 Cannon . | . . . Launcher . | . . . Special . | . . . Kinetic 217 | 20 148 49 Thermal . | . . . Explosive . | . . . Electromagnetic . | . . . Robot Hit Streak 19 | 5 19 15 Robot Miss Streak 4 | 3 2 4 Penetration Max . | . . . Secondary Targets 5 | . 3 2 Max Gunslinging Chain 1 | . 1 1 Shots Hit Robots 154 | 11 113 30 Core Hits 74 | 5 56 13 Critical Kills . | . . . Critical Parts Destroyed 1 | . 1 . Critical Strikes 1 | . 1 . Destroy 1 | . 1 . Melee Attacks . | . . . Impact . | . . . Slashing . | . . . Piercing . | . . . Sneak Attacks . | . . . Combat Hostiles . | . . . Follow-up Attacks . | . . . Damage Inflicted 1993 | 155 1448 390 Guns 1993 | 155 1448 390 Cannons . | . . . Explosions . | . . . Melee . | . . . Ramming . | . . . Kinetic 1993 | 155 1448 390 Thermal . | . . . Explosive . | . . . Electromagnetic . | . . . Impact . | . . . Slashing . | . . . Piercing . | . . . Highest Corruption 2 | . 2 2 Average Corruption 2 | . 2 2 Corruption Purged . | . . . Corruption Blocked . | . . . Effects 11 | . 9 2 Message Errors 2 | . 2 . Matter Fused 3 | . 2 1 Heat Flow Errors 2 | . 1 1 Energy Discharges 1 | . 1 . Data Loss (minor) 2 | . 2 . Data Loss (major) 1 | . 1 . Overload Shots . | . . . Overflow Damage . | . . . Projectiles . | . . . Explosions . | . . . Melee . | . . . Knockbacks . | . . . Impact . | . . . Kinetic . | . . . Secondary . | . . . Self-Inflicted Damage . | . . . Shots . | . . . Rammed . | . . . Targets Rammed . | . . . Kicked . | . . . Crushed . | . . . Highest Temperature 235 | . 235 117 Average Temperature 99 | . 119 68 Received Heat Transfer 438 | . 405 33 Siege Activations . | . . . Martial Activations . | . . . Shielding Activations . | . . . Robots Disrupted . | . . . Combat Hostiles . | . . . Robots Corrupted . | . . . Combat Hostiles . | . . . Parts Fried . | . . . Impact Corruptions . | . . . Robots Melted . | . . . Combat Hostiles . | . . . Parts Melted . | . . . Heat Transferred . | . . . Parts Sabotaged . | . . . Parts Stolen . | . . . Parts Stripped . | . . . Power Chain Reactions . | . . . Alert | -11 -10 -10 ------- Run | Yrd Mat Min Maximum Alert Level 2 | . 2 1 Low Security (%) 38 | 100 36 . Level 1 27 | . 23 100 Level 2 34 | . 40 . Level 3 . | . . . Level 4 . | . . . Level 5 . | . . . High Security . | . . . Max Security . | . . . Peak Influence 587 | 10 587 316 Initial 221 | . . 221 Average 282 | 2 306 272 Influence Increases 1094 | 20 939 135 Destroy 0b10 Robot/C 620 | . 520 100 Destroy 0b10 Robot/NC 55 | 20 30 5 Destroy Leader 188 | . 158 30 Successful Hack 6 | . 6 . Select Force Hacks 210 | . 210 . Lose Combat Pursuer 15 | . 15 . Influence Decreases 788 | 20 370 398 Entered New Map 348 | . . 348 Time Decay 430 | 20 370 40 Lost Part 10 | . . 10 Squads Dispatched 12 | . 12 . Investigation 12 | . 12 . Extermination . | . . . Reinforcement . | . . . Assault . | . . . Garrison . | . . . Intercept . | . . . Searches Triggered . | . . . Construction Impeded . | . . . Haulers Reinforced . | . . . Active Scanning Responses . | . . . Cargo Convoy Interrupts . | . . . Stealth | -11 -10 -10 --------- Run | Yrd Mat Min Distress Signals 5 | . 5 . Communications Jammed . | . . . Distress Signals . | . . . Times Spotted 44 | . 33 11 Peak Tracking Total 5 | . 5 5 Tactical Retreats 1 | . 1 . Traps | -11 -10 -10 ------- Run | Yrd Mat Min Traps Triggered 3 | . 3 . Indirectly . | . . . Trap Hack Attempts . | . . . Triggered . | . . . Disarmed . | . . . Reprogrammed . | . . . Reused . | . . . Traps Extracted . | . . . Installed . | . . . Triggered . | . . . Machines | -11 -10 -10 ---------- Run | Yrd Mat Min Machines Disabled 1 | . 1 . Max in Single Turn 1 | . 1 . Machines Repaired . | . . . Machines Dismantled . | . . . Machines Sabotaged 3 | . 3 . Overloaded Fab Kills . | . . . Hacking | -11 -10 -10 --------- Run | Yrd Mat Min Machines Accessed 11 | . 11 . Terminals 8 | . 8 . Fabricators . | . . . Repair Stations 1 | . 1 . Recycling Units 2 | . 2 . Scanalyzers . | . . . Garrison Access . | . . . Total Hacks 24 | . 24 . Successful 11 | . 11 . Failed 12 | . 12 . Catastrophic 2 | . 2 . Database Lockouts 1 | . 1 . Manual 22 | . 22 . Terminals 18 | . 18 . Fabricators . | . . . Repair Stations 1 | . 1 . Recycling Units 5 | . 5 . Scanalyzers . | . . . Garrison Access . | . . . Terminal Hacks 2 | . 2 . Robot Analysis 2 | . 2 . Fabricator Hacks . | . . . Repair Station Hacks . | . . . Recycling Unit Hacks . | . . . Scanalyzer . | . . . Garrison Access Hacks . | . . . Unauthorized Hacks 9 | . 9 . Terminals 6 | . 6 . Sabotage 6 | . 6 . Fabricators . | . . . Repair Stations 1 | . 1 . Patch 1 | . 1 . Recycling Units 2 | . 2 . Tunnel 2 | . 2 . Scanalyzers . | . . . Garrison Access . | . . . Data Cores Recovered . | . . . Used . | . . . Hacking Detections 5 | . 5 . Full Trace Events 2 | . 2 . Feedback Events . | . . . Feedback Blocked . | . . . Robot Schematics Acquired . | . . . Robots Built . | . . . Authchips . | . . . Time . | . . . Total Robot Build Rating . | . . . Part Schematics Acquired . | . . . Parts Built . | . . . Authchips . | . . . Time . | . . . Total Part Build Rating . | . . . Part Studies Acquired . | . . . Parts Repaired . | . . . Time . | . . . Parts Recycled . | . . . Recycled Matter . | . . . Retrieved Matter . | . . . Retrieved Components . | . . . Parts Scanalyzed . | . . . Part Schematics Acquired . | . . . Parts Damaged . | . . . Bothacking | -11 -10 -10 ------------ Run | Yrd Mat Min Used RIF Installer . | . . . Robots Hacked . | . . . Non-combat . | . . . Combat . | . . . Robot Hacks Applied . | . . . Relay Couplers Released . | . . . Fabnet Peak Effective % . | . . . Robots Rewired . | . . . Allies Hacked . | . . . Hacks Repelled . | . . . Allies | -11 -10 -10 -------- Run | Yrd Mat Min Total Allies . | . . . Largest Group . | . . . Highest-Rated Group . | . . . Highest-Rated Ally . | . . . Total Orders . | . . . Ally Attacks . | . . . Total Damage . | . . . Kills . | . . . Allies Corrupted . | . . . Allies Melted . | . . . Intel | -11 -10 -10 ------- Run | Yrd Mat Min Active Infowar (turns) 1102 | 24 997 81 Terrain 1102 | 24 997 81 Structural 163 | . 82 81 Seismic 1081 | 3 997 81 Robot Analysis Total 2 | . 2 . Derelict Logs Recovered 1 | . . 1 Drone Launches . | . . . Drone Recoveries . | . . . Exploration | -11 -10 -10 ------------- Run | Yrd Mat Min Turns Passed 1161 | 83 997 81 Spaces Moved 970 | 49 899 22 Core 3 | 3 . . Treads . | . . . Legs . | . . . Wheels 339 | 46 293 . Hover 628 | . 606 22 Flight . | . . . Fastest Speed 50 | 50 52 52 Average Speed 66 | 87 65 53 Slowest Speed 90 | 90 90 56 Overloaded Moves . | . . . Propulsion Burnouts . | . . . Robots Hopped . | . . . Potential Cave-ins . | . . . Cave-ins Triggered . | . . . Exploration Rate (%) 36 | 5 95 8 Regions Visited 2 Branch Regions 1 Pre-discovered Areas 2 | . 2 . Known Exits Taken . | . . . Unknown Exits Taken 2 | 1 1 . Scrap Searched . | . . . Spaces Dug . | . . . Terrain Destroyed . | . . . Melee . | . . . Projectile . | . . . AOE . | . . . Terrain Rammed . | . . . Walls Destroyed . | . . . Machines Disabled . | . . . Actions | -11 -10 -10 --------- Run | Yrd Mat Min Total 1270 | 65 1155 50 Wait 158 | . 154 4 Move 968 | 48 898 22 Hop . | . . . Pick Up 1 | . 1 . Fast Attach 10 | 7 3 . Attach . | . . . Detach . | . . . Swap 3 | . 3 . Drop . | . . . Fire 105 | 10 74 21 Melee . | . . . Ram . | . . . Kick . | . . . Crush . | . . . Escape Stasis . | . . . Rewire . | . . . Trap . | . . . Miscellaneous 25 | . 22 3 Route ------- -11/Scrapyard -10/Materials (discovered 6 exits: [*Mat x3] / [*Min x2] / *Sub) -10/Mines (discovered 1 exit: Sub) History --------- Turn | Location | Event 1 | -11/Scrapyard | Upgraded with Propulsion slot (x1) 1 | -11/Scrapyard | Upgraded with Utility slot (x1) 1 | -11/Scrapyard | Upgraded with Weapon slot (x1) 18 | -11/Scrapyard | Discovered new exit (range 15) 84 | -11/Scrapyard | Entered Materials 259 | -10/Materials | Discovered new exit (range 16) 311 | -10/Materials | Build established: Mutant 365 | -10/Materials | Discovered new exit (range 11) 423 | -10/Materials | Reached level 2 446 | -10/Materials | Upgraded with Weapon slot (x1) 539 | -10/Materials | Discovered new exit (range 15) 685 | -10/Materials | Central database locked down 715 | -10/Materials | Reached level 3 759 | -10/Materials | Upgraded with Propulsion slot (x1) 759 | -10/Materials | Upgraded with Utility slot (x1) 861 | -10/Materials | Discovered new exit (range 6) 911 | -10/Materials | Build established: Scavenger-Mutant 917 | -10/Materials | Discovered new exit (range 6) 1041 | -10/Materials | Discovered new exit (range 8) 1081 | -10/Materials | Entered Mines 1082 | -10/Mines | Assembled infested the area 1083 | -10/Mines | Reached level 4 1087 | -10/Mines | Assisted by a Guerilla fighting off Assembled 1097 | -10/Mines | Met a Derelict bent on vengeance 1098 | -10/Mines | Identified exit to Subcaves 1116 | -10/Mines | Core integrity fell below 50% 1126 | -10/Mines | Core integrity fell below 20% 1162 | -10/Mines | Destroyed by as-48718 with Assembled Heavy Rifle Last Messages --------------- 01121_ U-05 Engineer builds a Wall. 01124_ T-07 Excavator destroyed. 01125_ U-05 Engineer builds a Wall. 01128_ The unstable cave ceiling collapses. 01129_ U-05 Engineer lays Concrete. 01130_ U-05 Engineer builds a Wall. 01130_ D-53 Grenadier destroyed. 01130_ Switching to secondary target: G-47 Trooper. 01132_ The unstable cave ceiling collapses. 01134_ U-05 Engineer lays Concrete. 01135_ System corrupted: Heat flow error (+131). 01135_ U-05 Engineer destroyed. 01135_ U-05 Engineer lays Concrete. 01136_ G-47 Trooper destroyed. 01137_ The unstable cave ceiling collapses. 01139_ U-05 Engineer builds a Wall. 01141_ The unstable cave ceiling collapses. 01149_ G-34 Mercenary destroyed. 01158_ as-33330 destroyed. 01162_ System corrupted: Matter fused (-7). Map ----- +----------------------------------------------------+ | ?????????????????????????????????????????? | | ?????????????????????????????????????????? | | ?????????????????????????????????????????? | | ??????????????????????????? ????#????????? | | ?????????????????????????????????????????? | | ?????????????????????????????????????????? | | ?????????????????????????????????????????? | | ?????????????????????????????????????????? | | ?????????????????????????????????????????? | | ????????????????## ??????????????????????? | | ????????????????## ??????#?#??????#??????? | | ????????????????## ####??????????????????? | | ???????????????### ######???####?????????? | | ??????????????#### #############??????? | | ????????????? ## ##### ######?????? | | ????????????? ####?????? | | ????? ! #!%# ##?????? | | ???? %| ! % ###?????? | | ????? ## ##??????? | | ?????????????? # ##??????? | | ????????????#? ## % # ## ###??????? | | ?????????????? ### #% ## ###???#??? | | ???????????????##### #### a ###???????? | | ?????????????? ?#### a%% !###???????? | | ??????????????????#######*### # ????????? | | ??????????????????#######@######>??#?????? | | ???????????????????????##==######????????? | | ????????????? ????????? [%! ###??????????? | | ???????????????????#??## ##??????????? | | ???????????????????#??## ????????? | | ??????????????????????### ###??? ????? | | ???????????????#??????#### #####???????? | | ???????????? ???????????########???#?????? | | ?????????????????????????######??#?#?????? | | ?????????????????????????????????????????? | | | | | | | | | | | | | | | | | | | | | | | | | | | | | | | +----------------------------------------------------+ Best States ------------- Heat Dissipation 53 Energy Generation 10 Energy Capacity 250 Matter Stores 300 Matter Capacity 300 Sight Range 16 Terrain Scan Range 16 Terrain Scan Density 10 Evasion (%) 54 Item Schematics ----------------- None Robot Schematics ------------------ None Fabricated ------------ Nothing Repaired ---------- Nothing Studied --------- None Alien Tech Used ----------------- None Achievements -------------- None Challenges ------------ None RPGLIKE | -11 -10 -10 --------- Run | Yrd Mat Min Levels Raised 3 | . 2 1 XP Earned 8616 | 3000 4466 1150 XP Spent 5960 | 2960 3000 . Upgrades 14 | 10 4 . Propulsion Slot 2 | 1 1 . Utility Slot 2 | 1 1 . Weapon Slot 2 | 1 1 . Heat Dissipation 3 | 3 . . Mass Support 2 | 1 1 . Inventory Capacity 1 | 1 . . Ranged Accuracy 2 | 2 . . Protomatter Created 394 | . 294 100 Integrity Restored 543 | . 471 72 Core 543 | . 471 72 Protomatter Decayed 14 | . . 14 Game ------ Seed ExperimentalLatentScreen Manual? 0 Play Time 00:09:02 Cumulative 524.8 hours Start 2026.01.05 @ 10:15:35 End 2026.01.05 @ 10:24:59 Sessions 1 Manual Loads 0 Difficulty Rogue Special Mode Winter2019/RPGLIKE Game No. 194 Rogue 40 Adventurer 154 Explorer 0 Win Type - Total 20 Types 4/4/3/3/2/1/0/1/1/1 Lore% 95 Gallery% 88 Achievement% 61 Wizard Run 0 Options --------- Layout 0 ASCII 0 Keyboard 0 Movement Numpad Keybinds 0 Fullscreen 2 Font 18/SmallcapsGlow Map View 76x50 Zoom Use 0% Tactical HUD 1 Map Filters NONE Filters NONE Steam 1 RUN: fe3d0040-6989-4683-ad78-369334c03d1a